[Event "Early-Titled-Tuesday-Blitz-June-18-2024"]
[Site "Chess.com"]
[Date "2024.06.18"]
[Round "2"]
[White "Kopytkin"]
[Black "KuzubovYuriy"]
[Result "0-1"]
[WhiteElo "2427"]
[BlackElo "2864"]
[TimeControl "180+1"]
[EndTime "8:19:03 PDT"]
[Termination "KuzubovYuriy won on time"]

1. d4 {[%clk 0:03:00.9]} 1... Nf6 {[%clk 0:02:59.3]} 2. Bg5 {[%clk 0:03:00.7]}
2... d5 {[%clk 0:02:58]} 3. e3 {[%clk 0:02:56.3]} 3... c5 {[%clk 0:02:55.7]} 4.
c3 {[%clk 0:02:56.1]} 4... e6 {[%clk 0:02:53.9]} 5. Nd2 {[%clk 0:02:55.4]} 5...
h6 {[%clk 0:02:53.3]} 6. Bh4 {[%clk 0:02:53.2]} 6... Nc6 {[%clk 0:02:52.8]} 7.
Bd3 {[%clk 0:02:50.8]} 7... Qb6 {[%clk 0:02:51.8]} 8. Qb3 {[%clk 0:02:49.6]}
8... c4 {[%clk 0:02:50.7]} 9. Qxb6 {[%clk 0:02:49.7]} 9... axb6 {[%clk
0:02:51.6]} 10. Bc2 {[%clk 0:02:45]} 10... b5 {[%clk 0:02:48.6]} 11. Ne2 {[%clk
0:02:42.8]} 11... b4 {[%clk 0:02:47.5]} 12. Bxf6 {[%clk 0:02:40.8]} 12... gxf6
{[%clk 0:02:47.2]} 13. e4 {[%clk 0:02:31.3]} 13... bxc3 {[%clk 0:02:46.8]} 14.
bxc3 {[%clk 0:02:30.6]} 14... Bd6 {[%clk 0:02:39]} 15. a4 {[%clk 0:02:25.8]}
15... Ne7 {[%clk 0:02:26.6]} 16. O-O {[%clk 0:02:16.1]} 16... Bd7 {[%clk
0:02:25.7]} 17. f4 {[%clk 0:02:13.5]} 17... f5 {[%clk 0:02:08.7]} 18. exd5
{[%clk 0:02:07.2]} 18... exd5 {[%clk 0:02:04.4]} 19. Nf3 {[%clk 0:01:53.1]}
19... Ng6 {[%clk 0:01:51.5]} 20. Ne5 {[%clk 0:01:48.7]} 20... Be6 {[%clk
0:01:42.3]} 21. Rab1 {[%clk 0:01:41.3]} 21... Ra7 {[%clk 0:01:36.3]} 22. Rb6
{[%clk 0:01:16]} 22... Ke7 {[%clk 0:01:31.5]} 23. Rfb1 {[%clk 0:01:08.7]} 23...
Bc8 {[%clk 0:01:24.8]} 24. Nxf7 {[%clk 0:00:55.5]} 24... Kxf7 {[%clk 0:01:14.5]}
25. Rxd6 {[%clk 0:00:54.8]} 25... Re8 {[%clk 0:01:07.7]} 26. Kf2 {[%clk
0:00:54.8]} 26... Be6 {[%clk 0:00:54]} 27. Kf3 {[%clk 0:00:46]} 27... Re7 {[%clk
0:00:50]} 28. g3 {[%clk 0:00:42.2]} 28... Nf8 {[%clk 0:00:43.5]} 29. Rdb6 {[%clk
0:00:39.9]} 29... Nh7 {[%clk 0:00:42.4]} 30. Ng1 {[%clk 0:00:26.3]} 30... Nf6
{[%clk 0:00:42.5]} 31. Kg2 {[%clk 0:00:24.2]} 31... Ne4 {[%clk 0:00:41.9]} 32.
Bxe4 {[%clk 0:00:24.1]} 32... dxe4 {[%clk 0:00:42.8]} 33. Kf2 {[%clk 0:00:24.5]}
33... Rxa4 {[%clk 0:00:40.1]} 34. Rxb7 {[%clk 0:00:20.6]} 34... Bd5 {[%clk
0:00:20.3]} 35. Rxe7+ {[%clk 0:00:19.8]} 35... Kxe7 {[%clk 0:00:21.2]} 36. Ke3
{[%clk 0:00:20.4]} 36... h5 {[%clk 0:00:18.6]} 37. Ne2 {[%clk 0:00:19.1]} 37...
Kd7 {[%clk 0:00:17.3]} 38. Rb6 {[%clk 0:00:18.3]} 38... Ra1 {[%clk 0:00:17]} 39.
Rh6 {[%clk 0:00:17.5]} 39... Rd1 {[%clk 0:00:16.3]} 40. Rh7+ {[%clk 0:00:06]}
40... Ke6 {[%clk 0:00:16.1]} 41. Rh6+ {[%clk 0:00:06.3]} 41... Kf7 {[%clk
0:00:16.3]} 42. Rh7+ {[%clk 0:00:06.3]} 42... Kg6 {[%clk 0:00:16.1]} 43. Rd7
{[%clk 0:00:06.5]} 43... Rd3+ {[%clk 0:00:16.4]} 44. Kf2 {[%clk 0:00:06.6]}
44... e3+ {[%clk 0:00:17]} 45. Ke1 {[%clk 0:00:05.2]} 45... Bf3 {[%clk
0:00:16.3]} 46. Re7 {[%clk 0:00:02.4]} 46... Kf6 {[%clk 0:00:15.9]} 47. Re5
{[%clk 0:00:02.6]} 47... Be4 {[%clk 0:00:14.9]} 48. d5 {[%clk 0:00:02.1]} 48...
Bxd5 {[%clk 0:00:10.3]} 49. Nd4 {[%clk 0:00:01.5]} 49... Be4 {[%clk 0:00:10]}
0-1

[Event "Early-Titled-Tuesday-Blitz-June-18-2024"]
[Site "Chess.com"]
[Date "2024.06.18"]
[Round "2"]
[White "Zohid6"]
[Black "GelmanAlexander"]
[Result "1/2-1/2"]
[WhiteElo "2988"]
[BlackElo "2659"]
[TimeControl "180+1"]
[EndTime "8:19:05 PDT"]
[Termination "Game drawn by agreement"]

1. e4 {[%clk 0:03:00.9]} 1... c5 {[%clk 0:03:00]} 2. Nf3 {[%clk 0:03:00.9]} 2...
e6 {[%clk 0:03:00.3]} 3. c3 {[%clk 0:03:01]} 3... b6 {[%clk 0:02:59.9]} 4. d4
{[%clk 0:02:58]} 4... Bb7 {[%clk 0:03:00.4]} 5. Bd3 {[%clk 0:02:56.7]} 5... Nf6
{[%clk 0:03:00.5]} 6. Qe2 {[%clk 0:02:51.6]} 6... d5 {[%clk 0:03:00.2]} 7. e5
{[%clk 0:02:48.1]} 7... Nfd7 {[%clk 0:03:00.3]} 8. h4 {[%clk 0:02:47.5]} 8...
Nc6 {[%clk 0:02:59.6]} 9. a3 {[%clk 0:02:43.4]} 9... h6 {[%clk 0:02:56.6]} 10.
Bf4 {[%clk 0:02:36.4]} 10... Qc7 {[%clk 0:02:54.6]} 11. Nbd2 {[%clk 0:02:32.2]}
11... O-O-O {[%clk 0:02:53.8]} 12. b4 {[%clk 0:02:26.3]} 12... Kb8 {[%clk
0:02:51.4]} 13. Bg3 {[%clk 0:02:17.6]} 13... Ka8 {[%clk 0:02:47.1]} 14. O-O
{[%clk 0:02:14]} 14... Be7 {[%clk 0:02:45]} 15. Nh2 {[%clk 0:01:58.2]} 15... g5
{[%clk 0:02:03.1]} 16. h5 {[%clk 0:01:57.9]} 16... cxd4 {[%clk 0:02:01.9]} 17.
b5 {[%clk 0:01:57.9]} 17... dxc3 {[%clk 0:01:42.4]} 18. bxc6 {[%clk 0:01:57.3]}
18... Qxc6 {[%clk 0:01:43.3]} 19. Bb5 {[%clk 0:01:45.8]} 19... Qc7 {[%clk
0:01:38.8]} 20. Nb3 {[%clk 0:01:36.4]} 20... Nc5 {[%clk 0:01:28.4]} 21. Nxc5
{[%clk 0:01:22.5]} 21... bxc5 {[%clk 0:01:09.3]} 22. Rfc1 {[%clk 0:01:20.9]}
22... d4 {[%clk 0:01:09.4]} 23. Qd3 {[%clk 0:01:14.9]} 23... Bd5 {[%clk
0:00:58.5]} 24. Ng4 {[%clk 0:00:57.5]} 24... Rb8 {[%clk 0:00:58]} 25. a4 {[%clk
0:00:53.8]} 25... Rb6 {[%clk 0:00:56.3]} 26. Nf6 {[%clk 0:00:52.4]} 26... Bxf6
{[%clk 0:00:39]} 27. exf6 {[%clk 0:00:53.3]} 27... Qb7 {[%clk 0:00:39.5]} 28.
Bc4 {[%clk 0:00:33.7]} 28... Bxg2 {[%clk 0:00:34]} 29. a5 {[%clk 0:00:33.9]}
29... Rb2 {[%clk 0:00:31.6]} 30. a6 {[%clk 0:00:33.9]} 30... Qe4 {[%clk
0:00:30.4]} 31. Qxe4+ {[%clk 0:00:21.8]} 31... Bxe4 {[%clk 0:00:30.1]} 32. Ra5
{[%clk 0:00:20.6]} 32... Rc8 {[%clk 0:00:28.8]} 33. Bd6 {[%clk 0:00:18.9]} 33...
c2 {[%clk 0:00:24.8]} 34. Rxc5 {[%clk 0:00:14]} 34... Rxc5 {[%clk 0:00:21.3]}
35. Bxc5 {[%clk 0:00:14.9]} 35... Rb1 {[%clk 0:00:20.6]} 36. Ba3 {[%clk
0:00:15.1]} 36... d3 {[%clk 0:00:21.3]} 37. Bxd3 {[%clk 0:00:15.5]} 37... Bxd3
{[%clk 0:00:21.5]} 38. Kh2 {[%clk 0:00:13.9]} 38... Kb8 {[%clk 0:00:19.9]} 39.
f4 {[%clk 0:00:13.5]} 39... gxf4 {[%clk 0:00:18.9]} 40. Bd6+ {[%clk 0:00:13.2]}
40... Kc8 {[%clk 0:00:18.6]} 41. Bxf4 {[%clk 0:00:14.1]} 41... e5 {[%clk
0:00:17.3]} 42. Bxh6 {[%clk 0:00:14.2]} 42... Kd7 {[%clk 0:00:16.8]} 43. Be3
{[%clk 0:00:14.4]} 43... Ke6 {[%clk 0:00:17]} 44. Kg3 {[%clk 0:00:12.2]} 44...
Kxf6 {[%clk 0:00:17.4]} 45. Kf2 {[%clk 0:00:12.6]} 45... Ke6 {[%clk 0:00:17.2]}
46. Ke1 {[%clk 0:00:12.8]} 46... Kd5 {[%clk 0:00:17.6]} 47. Kd2 {[%clk
0:00:13.3]} 47... Bh7 {[%clk 0:00:17.3]} 48. Bxa7 {[%clk 0:00:13.1]} 48... Kc6
{[%clk 0:00:15.6]} 49. Bf2 {[%clk 0:00:11.3]} 49... Rxc1 {[%clk 0:00:13.5]} 50.
Kxc1 {[%clk 0:00:11]} 50... Kc7 {[%clk 0:00:13.4]} 51. h6 {[%clk 0:00:08.8]}
51... f6 {[%clk 0:00:13.5]} 52. Bh4 {[%clk 0:00:07.1]} 52... Kb6 {[%clk
0:00:09.3]} 53. Bxf6 {[%clk 0:00:07.4]} 53... Kxa6 {[%clk 0:00:09.8]} 54. Bxe5
{[%clk 0:00:07.8]} 54... Kb5 {[%clk 0:00:10.5]} 55. Bb2 {[%clk 0:00:06.7]} 55...
Kc4 {[%clk 0:00:10.9]} 56. Kd2 {[%clk 0:00:07]} 1/2-1/2

[Event "Early-Titled-Tuesday-Blitz-June-18-2024"]
[Site "Chess.com"]
[Date "2024.06.18"]
[Round "2"]
[White "alexrustemov"]
[Black "esskeettit"]
[Result "1-0"]
[WhiteElo "2859"]
[BlackElo "2504"]
[TimeControl "180+1"]
[EndTime "8:19:07 PDT"]
[Termination "alexrustemov won on time"]

1. d4 {[%clk 0:03:00.9]} 1... d5 {[%clk 0:02:59.8]} 2. c4 {[%clk 0:03:01.4]}
2... e6 {[%clk 0:02:59.8]} 3. Nc3 {[%clk 0:03:01.8]} 3... Be7 {[%clk 0:02:59.4]}
4. Nf3 {[%clk 0:03:00.8]} 4... Nf6 {[%clk 0:02:59]} 5. Bg5 {[%clk 0:03:01.1]}
5... O-O {[%clk 0:02:52.9]} 6. e3 {[%clk 0:03:01.3]} 6... h6 {[%clk 0:02:49]} 7.
Bxf6 {[%clk 0:03:00.9]} 7... Bxf6 {[%clk 0:02:48.8]} 8. Rc1 {[%clk 0:03:01.5]}
8... b6 {[%clk 0:02:29.6]} 9. cxd5 {[%clk 0:02:59.7]} 9... exd5 {[%clk
0:02:30.5]} 10. b4 {[%clk 0:03:00]} 10... c6 {[%clk 0:02:26.8]} 11. Be2 {[%clk
0:02:57.2]} 11... Re8 {[%clk 0:02:10.4]} 12. O-O {[%clk 0:02:56.3]} 12... Bf5
{[%clk 0:02:04.8]} 13. b5 {[%clk 0:02:52]} 13... a6 {[%clk 0:01:32.7]} 14. a4
{[%clk 0:02:39.7]} 14... cxb5 {[%clk 0:01:25.7]} 15. axb5 {[%clk 0:02:39.2]}
15... a5 {[%clk 0:01:26.1]} 16. Qb3 {[%clk 0:02:36.9]} 16... Be6 {[%clk
0:01:18]} 17. Na4 {[%clk 0:02:31.2]} 17... Ra7 {[%clk 0:01:07.2]} 18. Rc2 {[%clk
0:02:20.4]} 18... Rc7 {[%clk 0:01:07]} 19. Rfc1 {[%clk 0:02:20.1]} 19... Rxc2
{[%clk 0:01:05.6]} 20. Qxc2 {[%clk 0:02:10]} 20... Nd7 {[%clk 0:00:46.4]} 21.
Qc6 {[%clk 0:01:58.5]} 21... Qb8 {[%clk 0:00:35.7]} 22. h3 {[%clk 0:01:53.8]}
22... Bd8 {[%clk 0:00:25.1]} 23. Ne1 {[%clk 0:01:50.3]} 23... Nf6 {[%clk
0:00:24.9]} 24. Bf3 {[%clk 0:01:43.9]} 24... Bd7 {[%clk 0:00:20.6]} 25. Qc2
{[%clk 0:01:35.4]} 25... Bxb5 {[%clk 0:00:21.2]} 26. Rb1 {[%clk 0:01:26.8]}
26... Bc4 {[%clk 0:00:18.8]} 27. Nd3 {[%clk 0:01:21.8]} 27... b5 {[%clk
0:00:19]} 28. Nac5 {[%clk 0:01:17]} 28... b4 {[%clk 0:00:15.6]} 29. Ne5 {[%clk
0:01:15.9]} 29... Be7 {[%clk 0:00:11.5]} 30. Nxc4 {[%clk 0:01:10.2]} 30... dxc4
{[%clk 0:00:09.5]} 31. Qxc4 {[%clk 0:01:10.7]} 31... Rc8 {[%clk 0:00:09.6]} 32.
g3 {[%clk 0:00:45.1]} 32... Qb6 {[%clk 0:00:09.7]} 33. Rc1 {[%clk 0:00:44.2]}
33... Nd7 {[%clk 0:00:08.3]} 34. Bg4 {[%clk 0:00:40.3]} 34... Rxc5 {[%clk
0:00:04.9]} 35. dxc5 {[%clk 0:00:39.2]} 35... Nxc5 {[%clk 0:00:05.8]} 36. Rb1
{[%clk 0:00:26.9]} 36... b3 {[%clk 0:00:05.6]} 37. Bf3 {[%clk 0:00:23.6]} 37...
a4 {[%clk 0:00:05.7]} 38. Bd5 {[%clk 0:00:24.3]} 38... Qf6 {[%clk 0:00:04.5]}
39. Kg2 {[%clk 0:00:21.4]} 39... Kh8 {[%clk 0:00:04.7]} 40. h4 {[%clk
0:00:21.6]} 40... g5 {[%clk 0:00:04.1]} 41. hxg5 {[%clk 0:00:20.6]} 41... hxg5
{[%clk 0:00:05]} 42. Bxf7 {[%clk 0:00:20.2]} 42... Kg7 {[%clk 0:00:04.6]} 43.
Bd5 {[%clk 0:00:20.3]} 43... Qf5 {[%clk 0:00:04.8]} 44. Rh1 {[%clk 0:00:17.5]}
44... b2 {[%clk 0:00:04.5]} 45. e4 {[%clk 0:00:17.4]} 45... Qe5 {[%clk
0:00:04.5]} 46. Rb1 {[%clk 0:00:16.1]} 46... a3 {[%clk 0:00:04.2]} 47. Qa2
{[%clk 0:00:15.4]} 47... Qc3 {[%clk 0:00:03.9]} 48. Rh1 {[%clk 0:00:12.4]} 48...
Nd3 {[%clk 0:00:03.9]} 49. Qc4 {[%clk 0:00:09.9]} 49... Qf6 {[%clk 0:00:03.9]}
50. Qxd3 {[%clk 0:00:09.2]} 50... Bc5 {[%clk 0:00:02.2]} 51. Qf3 {[%clk
0:00:06.2]} 51... Qxf3+ {[%clk 0:00:01.3]} 52. Kxf3 {[%clk 0:00:06.6]} 1-0

[Event "Early-Titled-Tuesday-Blitz-June-18-2024"]
[Site "Chess.com"]
[Date "2024.06.18"]
[Round "2"]
[White "slidingknight2775"]
[Black "rachidhuilda"]
[Result "1-0"]
[WhiteElo "2708"]
[BlackElo "2402"]
[TimeControl "180+1"]
[EndTime "8:19:07 PDT"]
[Termination "slidingknight2775 won on time"]

1. d4 {[%clk 0:03:00.9]} 1... Nf6 {[%clk 0:02:43.8]} 2. c4 {[%clk 0:03:00.5]}
2... c5 {[%clk 0:02:43.9]} 3. d5 {[%clk 0:03:00.5]} 3... b5 {[%clk 0:02:43.9]}
4. cxb5 {[%clk 0:03:01.4]} 4... a6 {[%clk 0:02:43.5]} 5. bxa6 {[%clk 0:03:01.8]}
5... g6 {[%clk 0:02:43.4]} 6. Nc3 {[%clk 0:03:02.1]} 6... Bg7 {[%clk 0:02:42.1]}
7. e4 {[%clk 0:03:01.8]} 7... O-O {[%clk 0:02:36]} 8. a7 {[%clk 0:03:02]} 8...
Rxa7 {[%clk 0:02:35.5]} 9. Nf3 {[%clk 0:03:02.3]} 9... e6 {[%clk 0:02:34.3]} 10.
Be2 {[%clk 0:03:01.9]} 10... exd5 {[%clk 0:02:33.3]} 11. exd5 {[%clk 0:03:02.8]}
11... d6 {[%clk 0:02:28.8]} 12. O-O {[%clk 0:03:02.7]} 12... Ba6 {[%clk
0:02:15.2]} 13. Bf4 {[%clk 0:02:53.6]} 13... Re8 {[%clk 0:02:11.7]} 14. Bxa6
{[%clk 0:02:50.9]} 14... Nxa6 {[%clk 0:02:02.1]} 15. Qa4 {[%clk 0:02:39]} 15...
Qb6 {[%clk 0:01:52.2]} 16. Qb5 {[%clk 0:01:56.2]} 16... Rb8 {[%clk 0:01:43.8]}
17. a4 {[%clk 0:01:36.9]} 17... Nc7 {[%clk 0:01:40.1]} 18. Qd3 {[%clk
0:01:20.2]} 18... Nh5 {[%clk 0:00:54.5]} 19. Be3 {[%clk 0:00:50.7]} 19... Na6
{[%clk 0:00:50.8]} 20. Nb5 {[%clk 0:00:42]} 20... Nb4 {[%clk 0:00:49.1]} 21. Qd2
{[%clk 0:00:40.3]} 21... Nf6 {[%clk 0:00:40.7]} 22. Qxb4 {[%clk 0:00:29.6]}
22... cxb4 {[%clk 0:00:36.5]} 23. Bxb6 {[%clk 0:00:30.5]} 23... Rxb6 {[%clk
0:00:36.7]} 24. Nxa7 {[%clk 0:00:30.8]} 24... Nxd5 {[%clk 0:00:34.1]} 25. Rad1
{[%clk 0:00:24.4]} 25... Nf4 {[%clk 0:00:33.3]} 26. Rfe1 {[%clk 0:00:22]} 26...
Bxb2 {[%clk 0:00:33.3]} 27. Nb5 {[%clk 0:00:21.2]} 27... d5 {[%clk 0:00:29.1]}
28. g3 {[%clk 0:00:19.3]} 28... Ne6 {[%clk 0:00:28.8]} 29. Rxd5 {[%clk
0:00:19.5]} 29... Ra6 {[%clk 0:00:28.6]} 30. Re2 {[%clk 0:00:17.9]} 30... Bf6
{[%clk 0:00:25.7]} 31. Nfd4 {[%clk 0:00:18.1]} 31... Nxd4 {[%clk 0:00:23.5]} 32.
Nxd4 {[%clk 0:00:19]} 32... Rxa4 {[%clk 0:00:23.6]} 33. Nc6 {[%clk 0:00:19.3]}
33... b3 {[%clk 0:00:22.4]} 34. Rb5 {[%clk 0:00:19.6]} 34... b2 {[%clk 0:00:21]}
35. Rexb2 {[%clk 0:00:19.8]} 35... Bxb2 {[%clk 0:00:18.8]} 36. Rxb2 {[%clk
0:00:20.7]} 36... Rc4 {[%clk 0:00:18.9]} 37. Ne5 {[%clk 0:00:20.6]} 37... Re4
{[%clk 0:00:19.2]} 38. Nf3 {[%clk 0:00:20.8]} 38... h6 {[%clk 0:00:18.3]} 39.
Rd2 {[%clk 0:00:21.2]} 39... Kg7 {[%clk 0:00:18.3]} 40. h3 {[%clk 0:00:21.7]}
40... g5 {[%clk 0:00:18.3]} 41. Kg2 {[%clk 0:00:22.6]} 41... Kg6 {[%clk
0:00:18.1]} 42. Nh2 {[%clk 0:00:21.6]} 42... h5 {[%clk 0:00:17]} 43. g4 {[%clk
0:00:21.7]} 43... Re6 {[%clk 0:00:16.2]} 44. Nf1 {[%clk 0:00:21.5]} 44... h4
{[%clk 0:00:16.2]} 45. Ne3 {[%clk 0:00:21.6]} 45... Ra6 {[%clk 0:00:15.9]} 46.
Nf5 {[%clk 0:00:21.8]} 46... Ra5 {[%clk 0:00:14.9]} 47. Rd8 {[%clk 0:00:18.7]}
47... Ra3 {[%clk 0:00:11.8]} 48. Rg8+ {[%clk 0:00:18.3]} 48... Kf6 {[%clk
0:00:12.2]} 49. Rb8 {[%clk 0:00:18.1]} 49... Kg6 {[%clk 0:00:11.9]} 50. Rb6+
{[%clk 0:00:18.1]} 50... Kh7 {[%clk 0:00:08.6]} 51. Rh6+ {[%clk 0:00:15]} 51...
Kg8 {[%clk 0:00:06.8]} 52. Rc6 {[%clk 0:00:14.8]} 52... Kh7 {[%clk 0:00:06.5]}
53. Nd6 {[%clk 0:00:13.8]} 53... Kg7 {[%clk 0:00:06]} 54. Rc7 {[%clk 0:00:14.1]}
54... Kf6 {[%clk 0:00:03.2]} 55. Nxf7 {[%clk 0:00:13]} 55... Ra1 {[%clk
0:00:02.8]} 56. Nd6 {[%clk 0:00:12.8]} 56... Ke6 {[%clk 0:00:02.8]} 57. Ne4
{[%clk 0:00:13.1]} 57... Ra5 {[%clk 0:00:01]} 58. Rc5 {[%clk 0:00:12.4]} 1-0

[Event "Early-Titled-Tuesday-Blitz-June-18-2024"]
[Site "Chess.com"]
[Date "2024.06.18"]
[Round "2"]
[White "cristiano78"]
[Black "BM223344"]
[Result "0-1"]
[WhiteElo "2233"]
[BlackElo "2595"]
[TimeControl "180+1"]
[EndTime "8:19:07 PDT"]
[Termination "BM223344 won by resignation"]

1. d4 {[%clk 0:03:00]} 1... Nf6 {[%clk 0:03:00.1]} 2. c4 {[%clk 0:02:59.6]} 2...
g6 {[%clk 0:03:00.4]} 3. Nc3 {[%clk 0:02:58.6]} 3... Bg7 {[%clk 0:03:01]} 4. e4
{[%clk 0:02:58.4]} 4... d6 {[%clk 0:03:01.6]} 5. Nf3 {[%clk 0:02:58.1]} 5... O-O
{[%clk 0:03:01.5]} 6. Be2 {[%clk 0:02:58.2]} 6... Nbd7 {[%clk 0:03:00.9]} 7. O-O
{[%clk 0:02:58]} 7... e5 {[%clk 0:03:01.5]} 8. d5 {[%clk 0:02:57.6]} 8... Nc5
{[%clk 0:02:57]} 9. Nd2 {[%clk 0:02:57.2]} 9... a5 {[%clk 0:02:57.4]} 10. b3
{[%clk 0:02:56.7]} 10... h6 {[%clk 0:02:53.8]} 11. Rb1 {[%clk 0:02:54.9]} 11...
Nh7 {[%clk 0:02:52.4]} 12. a3 {[%clk 0:02:53.9]} 12... f5 {[%clk 0:02:49.4]} 13.
f3 {[%clk 0:02:50.3]} 13... b6 {[%clk 0:02:41.5]} 14. b4 {[%clk 0:02:50.1]}
14... axb4 {[%clk 0:02:41.8]} 15. axb4 {[%clk 0:02:50.7]} 15... Nd7 {[%clk
0:02:42.1]} 16. Nb3 {[%clk 0:02:48.4]} 16... f4 {[%clk 0:02:41.6]} 17. c5 {[%clk
0:02:45.7]} 17... bxc5 {[%clk 0:02:41.9]} 18. bxc5 {[%clk 0:02:45.7]} 18... h5
{[%clk 0:02:12.8]} 19. Nb5 {[%clk 0:02:38.9]} 19... Rf6 {[%clk 0:02:12.3]} 20.
Ba3 {[%clk 0:02:29.9]} 20... Bf8 {[%clk 0:02:12.2]} 21. Qc1 {[%clk 0:02:26.3]}
21... h4 {[%clk 0:02:04.3]} 22. cxd6 {[%clk 0:02:25.6]} 22... cxd6 {[%clk
0:02:04.7]} 23. Nc7 {[%clk 0:02:23.2]} 23... Rb8 {[%clk 0:01:42.3]} 24. Ne6
{[%clk 0:02:22.9]} 24... Qb6+ {[%clk 0:01:41]} 25. Kh1 {[%clk 0:02:22.6]} 25...
Be7 {[%clk 0:01:23.3]} 26. Nd2 {[%clk 0:02:18.1]} 26... Qa7 {[%clk 0:01:22]} 27.
Rxb8 {[%clk 0:02:10.4]} 27... Qxb8 {[%clk 0:01:21]} 28. Qc6 {[%clk 0:02:05.4]}
28... Ndf8 {[%clk 0:01:12.2]} 29. Rb1 {[%clk 0:01:58.9]} 29... Qa7 {[%clk
0:01:10]} 30. Qxc8 {[%clk 0:01:56.7]} 30... Qxa3 {[%clk 0:01:09.9]} 31. Nxf8
{[%clk 0:01:53.9]} 31... Nxf8 {[%clk 0:01:09.5]} 32. Rb7 {[%clk 0:01:25.9]}
32... Qe3 {[%clk 0:00:59.8]} 33. Qc4 {[%clk 0:01:00.9]} 33... Qxd2 {[%clk
0:00:50.9]} 34. Rxe7 {[%clk 0:01:00.5]} 34... Qe1+ {[%clk 0:00:38]} 35. Bf1
{[%clk 0:00:59.9]} 35... Qf2 {[%clk 0:00:38.3]} 36. Qe2 {[%clk 0:00:57.8]} 36...
Qxe2 {[%clk 0:00:38.3]} 37. Bxe2 {[%clk 0:00:57.8]} 37... Rf7 {[%clk 0:00:39.2]}
38. Rxf7 {[%clk 0:00:56.4]} 38... Kxf7 {[%clk 0:00:40.1]} 39. g3 {[%clk
0:00:57.1]} 39... hxg3 {[%clk 0:00:36.7]} 40. hxg3 {[%clk 0:00:56]} 40... g5
{[%clk 0:00:37.3]} 41. gxf4 {[%clk 0:00:55.9]} 41... gxf4 {[%clk 0:00:37.8]} 42.
Kg2 {[%clk 0:00:56.5]} 42... Nd7 {[%clk 0:00:37.8]} 43. Bb5 {[%clk 0:00:54.4]}
43... Nc5 {[%clk 0:00:36.6]} 44. Kh3 {[%clk 0:00:53.9]} 44... Kf6 {[%clk
0:00:34.7]} 45. Kg4 {[%clk 0:00:53.7]} 45... Nb3 {[%clk 0:00:34.2]} 46. Bd7
{[%clk 0:00:51.7]} 46... Nd4 {[%clk 0:00:34.1]} 47. Bc8 {[%clk 0:00:50.9]} 47...
Nc2 {[%clk 0:00:30.2]} 48. Bd7 {[%clk 0:00:48.1]} 48... Ne3+ {[%clk 0:00:30.3]}
49. Kh3 {[%clk 0:00:44.8]} 49... Kg5 {[%clk 0:00:30.1]} 50. Bc8 {[%clk
0:00:43.5]} 50... Nc2 {[%clk 0:00:24.5]} 51. Bg4 {[%clk 0:00:41.4]} 51... Ne1
{[%clk 0:00:21.6]} 52. Kh2 {[%clk 0:00:38.9]} 52... Kh4 {[%clk 0:00:21]} 53. Kg1
{[%clk 0:00:17.6]} 53... Kg3 {[%clk 0:00:20.6]} 54. Kf1 {[%clk 0:00:15]} 54...
Nxf3 {[%clk 0:00:21.5]} 55. Be6 {[%clk 0:00:12]} 55... Ng5 {[%clk 0:00:21.5]}
56. Bf5 {[%clk 0:00:11.7]} 56... Kf3 {[%clk 0:00:22.1]} 0-1

[Event "Early-Titled-Tuesday-Blitz-June-18-2024"]
[Site "Chess.com"]
[Date "2024.06.18"]
[Round "2"]
[White "N_Mullodzhanov"]
[Black "atbenina64"]
[Result "0-1"]
[WhiteElo "2572"]
[BlackElo "2831"]
[TimeControl "180+1"]
[EndTime "8:19:10 PDT"]
[Termination "atbenina64 won by resignation"]

1. e4 {[%clk 0:03:00.9]} 1... c5 {[%clk 0:03:00]} 2. c3 {[%clk 0:03:00.8]} 2...
Nf6 {[%clk 0:02:59.6]} 3. e5 {[%clk 0:03:00.6]} 3... Nd5 {[%clk 0:03:00]} 4. Nf3
{[%clk 0:03:00.6]} 4... d6 {[%clk 0:03:00.3]} 5. exd6 {[%clk 0:03:00.1]} 5... e6
{[%clk 0:02:57.2]} 6. g3 {[%clk 0:03:00.4]} 6... Bxd6 {[%clk 0:02:56.4]} 7. Bg2
{[%clk 0:03:00.8]} 7... O-O {[%clk 0:02:55.7]} 8. O-O {[%clk 0:03:01.2]} 8...
Nc6 {[%clk 0:02:55.7]} 9. d4 {[%clk 0:03:01.6]} 9... Nf6 {[%clk 0:02:55]} 10.
Na3 {[%clk 0:02:57.3]} 10... cxd4 {[%clk 0:02:54.7]} 11. Nb5 {[%clk 0:02:57.5]}
11... Bc5 {[%clk 0:02:39]} 12. Nbxd4 {[%clk 0:02:56.9]} 12... Nxd4 {[%clk
0:02:38.2]} 13. Nxd4 {[%clk 0:02:56.7]} 13... e5 {[%clk 0:02:21.4]} 14. Nb3
{[%clk 0:02:50.8]} 14... Bb6 {[%clk 0:02:16.9]} 15. Bg5 {[%clk 0:02:44.1]} 15...
Qe7 {[%clk 0:02:11.7]} 16. Qf3 {[%clk 0:02:33]} 16... Rb8 {[%clk 0:02:11.2]} 17.
Rad1 {[%clk 0:02:24.3]} 17... h6 {[%clk 0:02:03.5]} 18. Bxf6 {[%clk 0:02:22.3]}
18... Qxf6 {[%clk 0:02:04.1]} 19. Qxf6 {[%clk 0:02:21.6]} 19... gxf6 {[%clk
0:02:05]} 20. Rd6 {[%clk 0:01:55.2]} 20... Be6 {[%clk 0:01:57]} 21. Bd5 {[%clk
0:01:54.9]} 21... Bc7 {[%clk 0:01:51.4]} 22. Rxe6 {[%clk 0:01:36.7]} 22... fxe6
{[%clk 0:01:51.2]} 23. Bxe6+ {[%clk 0:01:37.6]} 23... Kh8 {[%clk 0:01:52.1]} 24.
Nc5 {[%clk 0:01:25.7]} 24... Rfe8 {[%clk 0:01:31.5]} 25. Bf5 {[%clk 0:01:09.7]}
25... Rbd8 {[%clk 0:01:17]} 26. Ne4 {[%clk 0:00:43.4]} 26... Bb6 {[%clk
0:01:10.2]} 27. Kg2 {[%clk 0:00:35.1]} 27... Kg7 {[%clk 0:01:10.1]} 28. h4
{[%clk 0:00:33.9]} 28... Rd5 {[%clk 0:01:06.8]} 29. Re1 {[%clk 0:00:28.5]} 29...
Red8 {[%clk 0:01:03.4]} 30. Re2 {[%clk 0:00:28.9]} 30... h5 {[%clk 0:01:00.1]}
31. b3 {[%clk 0:00:28.7]} 31... Rd1 {[%clk 0:00:58.8]} 32. a4 {[%clk 0:00:23.6]}
32... a5 {[%clk 0:00:55.4]} 33. b4 {[%clk 0:00:23.3]} 33... Ra1 {[%clk
0:00:52.2]} 34. bxa5 {[%clk 0:00:19]} 34... Bxa5 {[%clk 0:00:53.1]} 35. Nc5
{[%clk 0:00:19.3]} 35... Rdd1 {[%clk 0:00:41.7]} 36. Nxb7 {[%clk 0:00:17]} 36...
Bxc3 {[%clk 0:00:41.8]} 37. Nc5 {[%clk 0:00:15.2]} 37... Bd4 {[%clk 0:00:39.9]}
38. Ne6+ {[%clk 0:00:15.4]} 38... Kf7 {[%clk 0:00:39.8]} 39. Rc2 {[%clk
0:00:11.3]} 39... Ke7 {[%clk 0:00:28.8]} 40. Rc7+ {[%clk 0:00:06.7]} 40... Kd6
{[%clk 0:00:29.1]} 41. Rf7 {[%clk 0:00:05]} 41... Rg1+ {[%clk 0:00:25.6]} 42.
Kf3 {[%clk 0:00:05.5]} 42... Ra3+ {[%clk 0:00:25.4]} 43. Ke2 {[%clk 0:00:06]}
43... Ra2+ {[%clk 0:00:24]} 44. Kd3 {[%clk 0:00:06.6]} 44... Rd1+ {[%clk
0:00:23.2]} 45. Kc4 {[%clk 0:00:07.1]} 45... Rc1+ {[%clk 0:00:19.5]} 46. Kb5
{[%clk 0:00:05.7]} 46... Bxf2 {[%clk 0:00:15.7]} 47. Nd4 {[%clk 0:00:03.4]}
47... exd4 {[%clk 0:00:13.6]} 48. Rd7+ {[%clk 0:00:03.5]} 48... Ke5 {[%clk
0:00:14]} 49. Bd3 {[%clk 0:00:03.9]} 49... Rb2+ {[%clk 0:00:13.9]} 50. Ka6
{[%clk 0:00:03.5]} 50... Rc3 {[%clk 0:00:13.1]} 51. Re7+ {[%clk 0:00:03.2]}
51... Kd6 {[%clk 0:00:13]} 52. Rf7 {[%clk 0:00:03.2]} 52... Rxd3 {[%clk
0:00:12.2]} 53. Rxf6+ {[%clk 0:00:03.8]} 53... Ke5 {[%clk 0:00:12.8]} 54. Rh6
{[%clk 0:00:03]} 54... Rf3 {[%clk 0:00:12.1]} 0-1